[Event "*** Titled Tuesday Blitz"]
[Site "Chess.com"]
[Date "2021.02.09"]
[Round "7"]
[White "Rodalquilar"]
[Black "TomasKapitanchuk"]
[Result "1-0"]
[WhiteElo "2682"]
[BlackElo "2510"]
[TimeControl "180+1"]
[EndTime "11:18:42 PST"]
[Termination "Rodalquilar won by resignation"]

1. d4 {[%clk 0:03:00.9]} 1... Nf6 {[%clk 0:02:59.8]} 2. Bf4 {[%clk 0:03:00.2]}
2... e6 {[%clk 0:02:58.2]} 3. e3 {[%clk 0:03:00.6]} 3... c5 {[%clk 0:02:57.2]}
4. c3 {[%clk 0:03:00.4]} 4... b6 {[%clk 0:02:57.6]} 5. Nd2 {[%clk 0:03:00.3]}
5... Bb7 {[%clk 0:02:57.8]} 6. Ngf3 {[%clk 0:03:00.8]} 6... Be7 {[%clk
0:02:58.1]} 7. h3 {[%clk 0:03:00.6]} 7... d6 {[%clk 0:02:58.6]} 8. Bd3 {[%clk
0:03:00.5]} 8... O-O {[%clk 0:02:59.1]} 9. O-O {[%clk 0:03:01]} 9... Nbd7 {[%clk
0:02:59.4]} 10. Bh2 {[%clk 0:03:01.4]} 10... cxd4 {[%clk 0:02:59.7]} 11. exd4
{[%clk 0:03:01.4]} 11... Qc7 {[%clk 0:03:00.2]} 12. a4 {[%clk 0:03:01.7]} 12...
a6 {[%clk 0:03:00.3]} 13. Nc4 {[%clk 0:03:02.3]} 13... Bd5 {[%clk 0:02:54.6]}
14. Ne3 {[%clk 0:03:02.4]} 14... Bb7 {[%clk 0:02:54.9]} 15. Nd2 {[%clk
0:03:02.5]} 15... Rfe8 {[%clk 0:02:52]} 16. Rc1 {[%clk 0:02:51.5]} 16... Bc6
{[%clk 0:02:51.4]} 17. b4 {[%clk 0:02:50.7]} 17... b5 {[%clk 0:02:47.3]} 18. c4
{[%clk 0:02:50.4]} 18... Qb7 {[%clk 0:02:41.7]} 19. d5 {[%clk 0:02:06]} 19...
exd5 {[%clk 0:02:39]} 20. cxb5 {[%clk 0:02:05.7]} 20... axb5 {[%clk 0:02:37.8]}
21. Nf5 {[%clk 0:02:06.2]} 21... Ne5 {[%clk 0:02:33.1]} 22. Bxe5 {[%clk
0:01:49.6]} 22... dxe5 {[%clk 0:02:31.1]} 23. Rxc6 {[%clk 0:01:49.9]} 23... Qxc6
{[%clk 0:02:17.3]} 24. Bxb5 {[%clk 0:01:50.2]} 24... Qe6 {[%clk 0:02:05.1]} 25.
Bxe8 {[%clk 0:01:50.3]} 25... Rxe8 {[%clk 0:01:52.8]} 26. Nxe7+ {[%clk
0:01:50.1]} 26... Qxe7 {[%clk 0:01:51.7]} 27. Qb3 {[%clk 0:01:50.2]} 27... e4
{[%clk 0:01:51.6]} 28. b5 {[%clk 0:01:50.1]} 28... d4 {[%clk 0:01:51.8]} 29. b6
{[%clk 0:01:43.1]} 29... e3 {[%clk 0:01:51.9]} 30. fxe3 {[%clk 0:01:43.6]} 30...
dxe3 {[%clk 0:01:52.8]} 31. Nf3 {[%clk 0:01:44.2]} 31... e2 {[%clk 0:01:48.6]}
32. Rc1 {[%clk 0:01:39.4]} 32... Qb7 {[%clk 0:01:15.4]} 33. a5 {[%clk
0:01:32.6]} 33... Nd5 {[%clk 0:01:05.9]} 34. Qb5 {[%clk 0:01:21.3]} 34... Kf8
{[%clk 0:00:49]} 35. Qc5+ {[%clk 0:01:17.7]} 35... Kg8 {[%clk 0:00:46.3]} 36.
Qb5 {[%clk 0:00:55.3]} 36... Kf8 {[%clk 0:00:46]} 37. Kf2 {[%clk 0:00:52.7]}
37... h6 {[%clk 0:00:30.3]} 38. Qc5+ {[%clk 0:00:40.4]} 38... Kg8 {[%clk
0:00:26.8]} 39. Qc6 {[%clk 0:00:40.9]} 39... Qe7 {[%clk 0:00:16]} 40. b7 {[%clk
0:00:24.7]} 40... Qe3+ {[%clk 0:00:16]} 41. Ke1 {[%clk 0:00:25]} 41... Nf4
{[%clk 0:00:14.8]} 42. Qxe8+ {[%clk 0:00:24.8]} 42... Qxe8 {[%clk 0:00:14]} 43.
Rc8 {[%clk 0:00:25.1]} 43... Nxg2+ {[%clk 0:00:12.7]} 44. Kf2 {[%clk 0:00:25.5]}
44... e1=Q+ {[%clk 0:00:05.4]} 45. Nxe1 {[%clk 0:00:25.5]} 1-0

[Event "*** Titled Tuesday Blitz"]
[Site "Chess.com"]
[Date "2021.02.09"]
[Round "7"]
[White "Loy_Konstantin"]
[Black "Agibileg"]
[Result "0-1"]
[WhiteElo "2378"]
[BlackElo "2507"]
[TimeControl "180+1"]
[EndTime "11:18:44 PST"]
[Termination "Agibileg won on time"]

1. e4 {[%clk 0:03:00.9]} 1... c5 {[%clk 0:03:00.2]} 2. Nf3 {[%clk 0:03:00.7]}
2... e6 {[%clk 0:02:59.9]} 3. d3 {[%clk 0:03:00.6]} 3... Nc6 {[%clk 0:02:59.7]}
4. g3 {[%clk 0:03:00.4]} 4... d6 {[%clk 0:02:56.7]} 5. Bg2 {[%clk 0:03:00.3]}
5... Nf6 {[%clk 0:02:57.1]} 6. O-O {[%clk 0:02:59.9]} 6... Be7 {[%clk
0:02:57.6]} 7. Re1 {[%clk 0:02:59.4]} 7... O-O {[%clk 0:02:58]} 8. c3 {[%clk
0:02:59.8]} 8... e5 {[%clk 0:02:58.4]} 9. d4 {[%clk 0:02:59.4]} 9... exd4 {[%clk
0:02:59.3]} 10. cxd4 {[%clk 0:02:59.5]} 10... Bg4 {[%clk 0:02:59.8]} 11. dxc5
{[%clk 0:02:53.4]} 11... dxc5 {[%clk 0:02:57.3]} 12. Qxd8 {[%clk 0:02:53.7]}
12... Raxd8 {[%clk 0:02:49.6]} 13. Nc3 {[%clk 0:02:47.3]} 13... Nb4 {[%clk
0:02:49.4]} 14. Rb1 {[%clk 0:02:27.1]} 14... Nc2 {[%clk 0:02:46.3]} 15. Rf1
{[%clk 0:02:17.6]} 15... Nd4 {[%clk 0:02:19.8]} 16. Nxd4 {[%clk 0:02:02.7]}
16... cxd4 {[%clk 0:02:20.7]} 17. Nd5 {[%clk 0:02:00.9]} 17... Nxd5 {[%clk
0:02:18.3]} 18. exd5 {[%clk 0:02:01.2]} 18... Bb4 {[%clk 0:02:09.4]} 19. a3
{[%clk 0:01:32.9]} 19... Ba5 {[%clk 0:02:09.3]} 20. b4 {[%clk 0:01:30.4]} 20...
Bb6 {[%clk 0:02:09.3]} 21. Bd2 {[%clk 0:01:28.2]} 21... Rfe8 {[%clk 0:01:58.6]}
22. Rfe1 {[%clk 0:01:27.9]} 22... Bf5 {[%clk 0:01:53.2]} 23. Rxe8+ {[%clk
0:01:24.6]} 23... Rxe8 {[%clk 0:01:54.1]} 24. Re1 {[%clk 0:01:24.7]} 24... Rxe1+
{[%clk 0:01:50.2]} 25. Bxe1 {[%clk 0:01:25.6]} 25... Kf8 {[%clk 0:01:48.6]} 26.
Bd2 {[%clk 0:01:22.7]} 26... Ke7 {[%clk 0:01:46.9]} 27. Kf1 {[%clk 0:01:21.9]}
27... Bd3+ {[%clk 0:01:39.6]} 28. Ke1 {[%clk 0:01:20.9]} 28... f5 {[%clk
0:01:39.9]} 29. Bf4 {[%clk 0:01:15.3]} 29... Be4 {[%clk 0:01:39.6]} 30. Bxe4
{[%clk 0:01:04.3]} 30... fxe4 {[%clk 0:01:40.5]} 31. Be5 {[%clk 0:01:02.2]}
31... g6 {[%clk 0:01:36.6]} 32. Kd2 {[%clk 0:00:56.9]} 32... a6 {[%clk
0:01:32.3]} 33. g4 {[%clk 0:00:52.3]} 33... Kd7 {[%clk 0:01:26.8]} 34. h3 {[%clk
0:00:40.8]} 34... Ba7 {[%clk 0:01:26.8]} 35. a4 {[%clk 0:00:30.8]} 35... Bb6
{[%clk 0:01:25.2]} 36. b5 {[%clk 0:00:30.6]} 36... axb5 {[%clk 0:01:23.7]} 37.
axb5 {[%clk 0:00:31.5]} 37... Ba5+ {[%clk 0:01:16.1]} 38. Ke2 {[%clk 0:00:31.2]}
38... Bc3 {[%clk 0:01:15.9]} 39. Bf4 {[%clk 0:00:20.5]} 39... Bb2 {[%clk
0:00:59.8]} 40. Kd2 {[%clk 0:00:18.5]} 40... h5 {[%clk 0:00:56.9]} 41. Ke2
{[%clk 0:00:16.2]} 41... Ba3 {[%clk 0:00:52.9]} 42. Be5 {[%clk 0:00:14.9]} 42...
Bc5 {[%clk 0:00:53.2]} 43. Kd2 {[%clk 0:00:14.1]} 43... Bb4+ {[%clk 0:00:51.6]}
44. Ke2 {[%clk 0:00:14.2]} 44... Bc3 {[%clk 0:00:51.7]} 45. Bf4 {[%clk
0:00:13.4]} 45... Ke7 {[%clk 0:00:50.5]} 46. Bg3 {[%clk 0:00:10.3]} 46... Kf6
{[%clk 0:00:49.8]} 47. Bf4 {[%clk 0:00:10]} 47... hxg4 {[%clk 0:00:48.4]} 48.
hxg4 {[%clk 0:00:09.9]} 48... Bb2 {[%clk 0:00:47.3]} 49. Kd2 {[%clk 0:00:09.6]}
49... Ba1 {[%clk 0:00:45.9]} 50. Ke2 {[%clk 0:00:09.1]} 50... Bc3 {[%clk
0:00:45.7]} 51. Kd1 {[%clk 0:00:03.6]} 51... d3 {[%clk 0:00:43.3]} 52. Bd2
{[%clk 0:00:02.1]} 52... Bd4 {[%clk 0:00:42.7]} 0-1

[Event "*** Titled Tuesday Blitz"]
[Site "Chess.com"]
[Date "2021.02.09"]
[Round "7"]
[White "manitodeplomo"]
[Black "ukchessbomber"]
[Result "1-0"]
[WhiteElo "2631"]
[BlackElo "2431"]
[TimeControl "180+1"]
[EndTime "11:18:52 PST"]
[Termination "manitodeplomo won on time"]

1. d4 {[%clk 0:03:00.9]} 1... Nf6 {[%clk 0:02:51.5]} 2. c4 {[%clk 0:03:00.4]}
2... g6 {[%clk 0:02:52.1]} 3. Nc3 {[%clk 0:02:58.7]} 3... Bg7 {[%clk 0:02:52.7]}
4. e4 {[%clk 0:02:56.8]} 4... d6 {[%clk 0:02:53.1]} 5. Be2 {[%clk 0:02:57.2]}
5... O-O {[%clk 0:02:53.5]} 6. Nf3 {[%clk 0:02:55.1]} 6... e5 {[%clk 0:02:53.4]}
7. d5 {[%clk 0:02:55.3]} 7... Nh5 {[%clk 0:02:50.1]} 8. g3 {[%clk 0:02:53.2]}
8... Qe8 {[%clk 0:02:47.8]} 9. Nh4 {[%clk 0:02:46.9]} 9... Nf6 {[%clk
0:02:45.1]} 10. O-O {[%clk 0:02:42.9]} 10... a5 {[%clk 0:02:44.5]} 11. Be3
{[%clk 0:02:41.2]} 11... b6 {[%clk 0:02:41.5]} 12. a3 {[%clk 0:02:40.7]} 12...
Na6 {[%clk 0:02:27.9]} 13. f3 {[%clk 0:02:06.2]} 13... Bd7 {[%clk 0:02:18.7]}
14. b3 {[%clk 0:02:04.6]} 14... h6 {[%clk 0:02:14.3]} 15. Rb1 {[%clk 0:02:01.7]}
15... Nh7 {[%clk 0:02:09.4]} 16. Qd2 {[%clk 0:01:48.4]} 16... f5 {[%clk
0:02:08.8]} 17. Bxh6 {[%clk 0:01:44.4]} 17... f4 {[%clk 0:02:08.2]} 18. Bxg7
{[%clk 0:01:41.2]} 18... Kxg7 {[%clk 0:02:09.1]} 19. b4 {[%clk 0:01:31.5]} 19...
axb4 {[%clk 0:02:02.9]} 20. axb4 {[%clk 0:01:32.4]} 20... Ng5 {[%clk 0:01:59.8]}
21. g4 {[%clk 0:00:54.9]} 21... Rh8 {[%clk 0:01:49.4]} 22. Ng2 {[%clk
0:00:53.1]} 22... Rh3 {[%clk 0:01:49.8]} 23. Rf2 {[%clk 0:00:48.5]} 23... Qh8
{[%clk 0:01:25.2]} 24. Ne1 {[%clk 0:00:47.9]} 24... Qh6 {[%clk 0:01:20.3]} 25.
Bf1 {[%clk 0:00:47.4]} 25... Rh4 {[%clk 0:01:08.5]} 26. Ra1 {[%clk 0:00:46.9]}
26... Bc8 {[%clk 0:00:52]} 27. b5 {[%clk 0:00:43.1]} 27... Bb7 {[%clk
0:00:34.5]} 28. bxa6 {[%clk 0:00:42.1]} 28... Bc8 {[%clk 0:00:35]} 29. a7 {[%clk
0:00:40.5]} 29... Bb7 {[%clk 0:00:32.8]} 30. Nb5 {[%clk 0:00:38.6]} 30... Nxe4
{[%clk 0:00:17.8]} 31. fxe4 {[%clk 0:00:37]} 31... Rxg4+ {[%clk 0:00:18.3]} 32.
Rg2 {[%clk 0:00:36.2]} 32... Rh4 {[%clk 0:00:18.5]} 33. Nf3 {[%clk 0:00:33.6]}
33... Rh3 {[%clk 0:00:18]} 34. Ng5 {[%clk 0:00:33.4]} 34... Re3 {[%clk
0:00:15.6]} 35. Nxc7 {[%clk 0:00:28.7]} 35... Kf6 {[%clk 0:00:12.3]} 36. Nxa8
{[%clk 0:00:26.7]} 36... Bxa8 {[%clk 0:00:13.2]} 37. Qf2 {[%clk 0:00:23.5]}
37... Qh5 {[%clk 0:00:11.5]} 38. Re1 {[%clk 0:00:23]} 38... Ra3 {[%clk 0:00:10]}
39. Be2 {[%clk 0:00:21.8]} 39... Qh6 {[%clk 0:00:06.2]} 40. h4 {[%clk
0:00:21.8]} 40... Rxa7 {[%clk 0:00:03.5]} 41. Rg4 {[%clk 0:00:19]} 41... Bb7
{[%clk 0:00:02.9]} 42. Qxb6 {[%clk 0:00:18.6]} 42... Bc8 {[%clk 0:00:02.9]} 43.
Qxd6+ {[%clk 0:00:17.1]} 43... Kg7 {[%clk 0:00:01.8]} 44. Qxe5+ {[%clk
0:00:17.2]} 44... Kf8 {[%clk 0:00:02.4]} 45. Rxf4+ {[%clk 0:00:16.9]} 45... Rf7
{[%clk 0:00:02.7]} 46. Rxf7+ {[%clk 0:00:16.9]} 46... Kg8 {[%clk 0:00:03.6]} 47.
Qe8+ {[%clk 0:00:17.1]} 1-0

[Event "*** Titled Tuesday Blitz"]
[Site "Chess.com"]
[Date "2021.02.09"]
[Round "7"]
[White "nochewycandy"]
[Black "Eternauta2400"]
[Result "1-0"]
[WhiteElo "2642"]
[BlackElo "2377"]
[TimeControl "180+1"]
[EndTime "11:18:52 PST"]
[Termination "nochewycandy won on time"]

1. e4 {[%clk 0:03:00.9]} 1... c5 {[%clk 0:02:57.4]} 2. Nf3 {[%clk 0:03:00.6]}
2... Nc6 {[%clk 0:02:57.6]} 3. d4 {[%clk 0:03:01.2]} 3... cxd4 {[%clk
0:02:58.5]} 4. Nxd4 {[%clk 0:03:02.1]} 4... g6 {[%clk 0:02:58.8]} 5. Nc3 {[%clk
0:02:59.9]} 5... Bg7 {[%clk 0:02:58.4]} 6. Be3 {[%clk 0:02:56.1]} 6... Nf6
{[%clk 0:02:56.2]} 7. Bc4 {[%clk 0:02:56.1]} 7... O-O {[%clk 0:02:54]} 8. Bb3
{[%clk 0:02:56.2]} 8... d6 {[%clk 0:02:52.3]} 9. f3 {[%clk 0:02:23.9]} 9... Bd7
{[%clk 0:02:50.4]} 10. h4 {[%clk 0:02:16.7]} 10... Nxd4 {[%clk 0:02:42.6]} 11.
Bxd4 {[%clk 0:02:17.6]} 11... Bc6 {[%clk 0:02:38.9]} 12. h5 {[%clk 0:02:05.4]}
12... Nxh5 {[%clk 0:02:34.6]} 13. g4 {[%clk 0:01:56.2]} 13... Nf4 {[%clk
0:02:09.4]} 14. Qd2 {[%clk 0:01:53]} 14... Bxd4 {[%clk 0:02:03.7]} 15. Qxd4
{[%clk 0:01:52.7]} 15... e5 {[%clk 0:01:52.4]} 16. Qd2 {[%clk 0:01:51.3]} 16...
Kg7 {[%clk 0:01:44.3]} 17. O-O-O {[%clk 0:01:49.4]} 17... h6 {[%clk 0:01:39]}
18. Ne2 {[%clk 0:01:45.3]} 18... Nxe2+ {[%clk 0:01:30.3]} 19. Qxe2 {[%clk
0:01:46.2]} 19... a5 {[%clk 0:01:24.7]} 20. a3 {[%clk 0:01:41.6]} 20... b5
{[%clk 0:01:16.7]} 21. Bd5 {[%clk 0:01:41]} 21... Qg5+ {[%clk 0:01:10.9]} 22.
Kb1 {[%clk 0:01:41]} 22... Bxd5 {[%clk 0:01:07.5]} 23. Rxd5 {[%clk 0:01:41.9]}
23... b4 {[%clk 0:01:05.7]} 24. a4 {[%clk 0:01:39.3]} 24... Rfd8 {[%clk
0:01:02.5]} 25. Rhd1 {[%clk 0:01:37.5]} 25... Qe7 {[%clk 0:00:55.6]} 26. Qe3
{[%clk 0:01:34.7]} 26... Qd7 {[%clk 0:00:51.9]} 27. b3 {[%clk 0:01:24.6]} 27...
Ra6 {[%clk 0:00:51.8]} 28. g5 {[%clk 0:01:19]} 28... h5 {[%clk 0:00:51]} 29. f4
{[%clk 0:01:19.7]} 29... exf4 {[%clk 0:00:38.2]} 30. Qxf4 {[%clk 0:01:18.3]}
30... Qe7 {[%clk 0:00:38.7]} 31. Qf1 {[%clk 0:01:07]} 31... Rc6 {[%clk
0:00:35.6]} 32. Qd3 {[%clk 0:00:59]} 32... Rdc8 {[%clk 0:00:32.6]} 33. Rd2
{[%clk 0:00:58.8]} 33... Rc5 {[%clk 0:00:23.8]} 34. Rxd6 {[%clk 0:00:58]} 34...
Qxg5 {[%clk 0:00:20.1]} 35. Rd7 {[%clk 0:00:53.5]} 35... Re8 {[%clk 0:00:15.1]}
36. Ka2 {[%clk 0:00:42.3]} 36... Rce5 {[%clk 0:00:14.7]} 37. Qc4 {[%clk
0:00:40.4]} 37... R8e7 {[%clk 0:00:13.1]} 38. Rd8 {[%clk 0:00:37.4]} 38... Rxe4
{[%clk 0:00:11.4]} 39. Qc8 {[%clk 0:00:38]} 39... Kf6 {[%clk 0:00:07.1]} 40.
Rf2+ {[%clk 0:00:30.7]} 40... Rf4 {[%clk 0:00:06.4]} 41. Rd6+ {[%clk 0:00:23.4]}
41... Re6 {[%clk 0:00:02.7]} 42. Qd8+ {[%clk 0:00:20]} 42... Ke5 {[%clk
0:00:02.2]} 43. Qxg5+ {[%clk 0:00:17.8]} 43... Kxd6 {[%clk 0:00:02]} 44. Qxf4+
{[%clk 0:00:17.9]} 44... Re5 {[%clk 0:00:02.1]} 45. Qxf7 {[%clk 0:00:17.5]}
45... Rf5 {[%clk 0:00:01.4]} 46. Rxf5 {[%clk 0:00:17.2]} 46... gxf5 {[%clk
0:00:02.3]} 47. Qxf5 {[%clk 0:00:17]} 1-0

[Event "*** Titled Tuesday Blitz"]
[Site "Chess.com"]
[Date "2021.02.09"]
[Round "7"]
[White "SKLGgonkom"]
[Black "Heineccius"]
[Result "0-1"]
[WhiteElo "2361"]
[BlackElo "2568"]
[TimeControl "180+1"]
[EndTime "11:18:54 PST"]
[Termination "Heineccius won on time"]

1. Nf3 {[%clk 0:03:00.9]} 1... Nf6 {[%clk 0:02:59.6]} 2. c4 {[%clk 0:02:59.3]}
2... e6 {[%clk 0:02:59.6]} 3. g3 {[%clk 0:02:58.8]} 3... d5 {[%clk 0:02:59.1]}
4. Bg2 {[%clk 0:02:58.9]} 4... Be7 {[%clk 0:02:58.8]} 5. d4 {[%clk 0:02:57.3]}
5... O-O {[%clk 0:02:57.9]} 6. Nc3 {[%clk 0:02:57.7]} 6... dxc4 {[%clk
0:02:57.4]} 7. Ne5 {[%clk 0:02:58.2]} 7... c5 {[%clk 0:02:54.1]} 8. dxc5 {[%clk
0:02:51.3]} 8... Qxd1+ {[%clk 0:02:48.9]} 9. Nxd1 {[%clk 0:02:52.2]} 9... Bxc5
{[%clk 0:02:42.1]} 10. a3 {[%clk 0:02:37.6]} 10... Nc6 {[%clk 0:02:35.3]} 11.
Nxc4 {[%clk 0:02:36]} 11... Nd4 {[%clk 0:02:32.1]} 12. Rb1 {[%clk 0:02:19.3]}
12... Bd7 {[%clk 0:02:25]} 13. b4 {[%clk 0:02:15.2]} 13... Be7 {[%clk
0:02:19.9]} 14. Bb2 {[%clk 0:01:57.1]} 14... Bc6 {[%clk 0:02:05.4]} 15. f3
{[%clk 0:01:43.6]} 15... Rfd8 {[%clk 0:02:00.8]} 16. Na5 {[%clk 0:01:28.9]}
16... Rac8 {[%clk 0:01:46.2]} 17. Kf2 {[%clk 0:01:26.8]} 17... e5 {[%clk
0:01:30.1]} 18. Ne3 {[%clk 0:01:25]} 18... Rc7 {[%clk 0:01:10.1]} 19. Nxc6
{[%clk 0:01:18.8]} 19... Rxc6 {[%clk 0:01:07.5]} 20. f4 {[%clk 0:01:16.8]} 20...
exf4 {[%clk 0:01:02.6]} 21. gxf4 {[%clk 0:01:16]} 21... Re6 {[%clk 0:00:47.7]}
22. Rhd1 {[%clk 0:01:00]} 22... Ne4+ {[%clk 0:00:47.2]} 23. Kf1 {[%clk
0:00:43.8]} 23... Bf6 {[%clk 0:00:41.3]} 24. Ng4 {[%clk 0:00:34.7]} 24... Nc6
{[%clk 0:00:28.9]} 25. Nxf6+ {[%clk 0:00:30.9]} 25... gxf6 {[%clk 0:00:27.7]}
26. b5 {[%clk 0:00:14.1]} 26... Rxd1+ {[%clk 0:00:24.6]} 27. Rxd1 {[%clk
0:00:13.5]} 27... Na5 {[%clk 0:00:24.8]} 28. Rd8+ {[%clk 0:00:12.6]} 28... Kg7
{[%clk 0:00:25.2]} 29. Rd7 {[%clk 0:00:07.6]} 29... Nc4 {[%clk 0:00:24.3]} 30.
Bd4 {[%clk 0:00:05.3]} 30... Ncd6 {[%clk 0:00:21.1]} 31. f5 {[%clk 0:00:03.6]}
31... Nxf5 {[%clk 0:00:21.1]} 32. Bxa7 {[%clk 0:00:02.9]} 32... b6 {[%clk
0:00:20]} 33. a4 {[%clk 0:00:02.6]} 33... Nc5 {[%clk 0:00:19.2]} 34. a5 {[%clk
0:00:02.2]} 34... Nxd7 {[%clk 0:00:17.8]} 35. a6 {[%clk 0:00:02.6]} 35... Ne3+
{[%clk 0:00:18.4]} 36. Kf2 {[%clk 0:00:02.2]} 36... Nxg2 {[%clk 0:00:19.3]} 37.
Kxg2 {[%clk 0:00:02.6]} 37... Rxe2+ {[%clk 0:00:19.6]} 38. Kf3 {[%clk 0:00:03]}
38... Ra2 {[%clk 0:00:20.5]} 39. Ke4 {[%clk 0:00:01.7]} 39... Kf8 {[%clk
0:00:20.5]} 40. Kd5 {[%clk 0:00:02.2]} 40... Ke7 {[%clk 0:00:20.7]} 41. Kc6
{[%clk 0:00:03.1]} 41... Rc2+ {[%clk 0:00:19.9]} 42. Kb7 {[%clk 0:00:03.2]}
42... Rb2 {[%clk 0:00:17.5]} 43. Bxb6 {[%clk 0:00:03.4]} 43... Rxb5 {[%clk
0:00:17.6]} 44. a7 {[%clk 0:00:02]} 44... Rxb6+ {[%clk 0:00:17.9]} 45. Kc7
{[%clk 0:00:02.2]} 45... Ra6 {[%clk 0:00:17.6]} 46. Kb7 {[%clk 0:00:02.5]} 46...
Nc5+ {[%clk 0:00:16.6]} 0-1

[Event "*** Titled Tuesday Blitz"]
[Site "Chess.com"]
[Date "2021.02.09"]
[Round "7"]
[White "JoachimMouhamad"]
[Black "Mikhail_Golubev"]
[Result "0-1"]
[WhiteElo "2382"]
[BlackElo "2530"]
[TimeControl "180+1"]
[EndTime "11:18:55 PST"]
[Termination "Mikhail_Golubev won on time"]

1. e4 {[%clk 0:03:00.9]} 1... c5 {[%clk 0:02:59.4]} 2. Nf3 {[%clk 0:03:00.8]}
2... d6 {[%clk 0:02:59.5]} 3. d4 {[%clk 0:03:01.1]} 3... Nf6 {[%clk 0:02:59.6]}
4. Nc3 {[%clk 0:03:00.5]} 4... cxd4 {[%clk 0:02:59.7]} 5. Nxd4 {[%clk
0:03:01.1]} 5... g6 {[%clk 0:02:59.9]} 6. Be3 {[%clk 0:03:00.2]} 6... Bg7 {[%clk
0:03:00]} 7. f3 {[%clk 0:03:00.2]} 7... Nc6 {[%clk 0:03:00.1]} 8. Qd2 {[%clk
0:02:59.9]} 8... O-O {[%clk 0:02:59.5]} 9. O-O-O {[%clk 0:03:00.5]} 9... d5
{[%clk 0:02:58.8]} 10. exd5 {[%clk 0:03:00.2]} 10... Nxd5 {[%clk 0:02:58.4]} 11.
Nxc6 {[%clk 0:03:00.5]} 11... bxc6 {[%clk 0:02:58.5]} 12. Bd4 {[%clk 0:03:01]}
12... e5 {[%clk 0:02:58.4]} 13. Bc5 {[%clk 0:03:01.7]} 13... Be6 {[%clk
0:02:58.3]} 14. Ne4 {[%clk 0:03:02.1]} 14... Re8 {[%clk 0:02:58.3]} 15. h4
{[%clk 0:03:02.6]} 15... h6 {[%clk 0:02:53.2]} 16. g4 {[%clk 0:03:03.2]} 16...
Nf4 {[%clk 0:02:52.5]} 17. Qc3 {[%clk 0:02:44.7]} 17... Bd5 {[%clk 0:02:50.6]}
18. g5 {[%clk 0:02:33.4]} 18... h5 {[%clk 0:02:45.3]} 19. Qa3 {[%clk 0:02:31]}
19... Qc7 {[%clk 0:02:22.4]} 20. Bd6 {[%clk 0:02:26.1]} 20... Qd7 {[%clk
0:02:17.2]} 21. Rh2 {[%clk 0:02:09.4]} 21... Rad8 {[%clk 0:01:28]} 22. Rhd2
{[%clk 0:02:07.3]} 22... Bxe4 {[%clk 0:01:26.8]} 23. fxe4 {[%clk 0:02:07.3]}
23... Qg4 {[%clk 0:01:26.7]} 24. Bc4 {[%clk 0:01:58.9]} 24... Rd7 {[%clk
0:01:12.5]} 25. Bc5 {[%clk 0:01:35.3]} 25... Rxd2 {[%clk 0:01:00.9]} 26. Rxd2
{[%clk 0:01:35.8]} 26... Ne6 {[%clk 0:00:50.5]} 27. Qxa7 {[%clk 0:01:08.4]}
27... Qxe4 {[%clk 0:00:44.6]} 28. Bxe6 {[%clk 0:00:57.8]} 28... Rxe6 {[%clk
0:00:41.4]} 29. a4 {[%clk 0:00:51.7]} 29... Qxh4 {[%clk 0:00:28.5]} 30. a5
{[%clk 0:00:49.8]} 30... Qxg5 {[%clk 0:00:23.8]} 31. Qb8+ {[%clk 0:00:45]} 31...
Kh7 {[%clk 0:00:22.1]} 32. a6 {[%clk 0:00:45.2]} 32... Bh6 {[%clk 0:00:21.6]}
33. a7 {[%clk 0:00:32.1]} 33... Qxd2+ {[%clk 0:00:20.3]} 34. Kb1 {[%clk
0:00:32.8]} 34... Qd1+ {[%clk 0:00:20.4]} 35. Ka2 {[%clk 0:00:33.3]} 35... Qd5+
{[%clk 0:00:19.5]} 36. Kb1 {[%clk 0:00:19.9]} 36... Rf6 {[%clk 0:00:19.4]} 37.
b3 {[%clk 0:00:14.3]} 37... Rf1+ {[%clk 0:00:18.7]} 38. Ka2 {[%clk 0:00:09.4]}
38... Qd1 {[%clk 0:00:15]} 39. Ka3 {[%clk 0:00:07.3]} 39... Bd2 {[%clk
0:00:11.9]} 40. Ka4 {[%clk 0:00:04.3]} 40... Qa1+ {[%clk 0:00:11.3]} 41. Ba3
{[%clk 0:00:04.6]} 41... Bc1 {[%clk 0:00:10.6]} 42. Qd6 {[%clk 0:00:04.4]} 42...
Bxa3 {[%clk 0:00:10.5]} 43. Qxa3 {[%clk 0:00:01.1]} 43... Qxa3+ {[%clk 0:00:10]}
44. Kxa3 {[%clk 0:00:02]} 44... Ra1+ {[%clk 0:00:10.2]} 0-1